[Event "Stare Mesto Open-A 2022"]
[Site "Stare Mesto"]
[Date "2022.08.20"]
[Round "9.3"]
[White "Szotkowski, Jakub"]
[Black "Neuman, Petr"]
[Result "1/2-1/2"]
[ECO "D15"]
[WhiteElo "2344"]
[BlackElo "2378"]
[Annotator "TA"]
[PlyCount "52"]
[EventDate "2022.08.12"]
[EventType "swiss"]
[EventCountry "CZE"]
[SourceTitle "playchess.com"]
[Source "ChessBase"]
[SourceQuality "1"]
[TimeControl "40/5400+30:1800+30"]

{[%evp 15,52,1,1,-1,0,0,14,10,13,0,-9,-21,0,0,2,-8,0,-12,0,0,0,0,0,0,0,0,0,8,4,-60,-47,-141,-146,-155,-140,-106,-125,-152,-133]} 1. d4 {[%emt 0:00:05]} d5 {[%emt 0:00:08]} 2. c4 {[%emt 0:00:15]} c6 {[%emt 0:00:11]} 3. Nf3 {[%emt 0:00:17]} Nf6 {[%emt 0:00:07]} 4. Nc3 {[%emt 0:04:29]} a6 {[%emt 0:01:25]} 5. cxd5 {[%emt 0:05:24]} cxd5 {[%emt 0:00:10]} 6. Bf4 {[%emt 0:00:55]} Nc6 {[%emt 0:00:13]} 7. e3 {[%emt 0:00:39] 7.Rc1 is the modern continuation.} Bg4 {[%emt 0:00:12]} 8. Bd3 {[%emt 0:02:53]} e6 {[%emt 0:00:35]} 9. Qb3 {[%emt 0:05:10] D13: Slav Defence: Exchange variation without ...Bf5.} Bxf3 {[%emt 0:01:49]} 10. gxf3 {[%emt 0:00:05]} Ra7 {[%emt 0:07:44]} 11. Rg1 {[%emt 0:04:03] [#] The position is equal.} g6 $146 {[%emt 0:03:10]} ({Predecessor:} 11... Nh5 12. Bg3 Nxg3 13. hxg3 {½-½ (13) Bagirov,R (2504)-Komliakov,V (2438) Moscow 2006}) 12. Ke2 {[%emt 0:02:10]} Bd6 {[%emt 0:02:24] [#] Threatens to win with ...Bxf4.} 13. Bh6 {[%emt 0:02:41]} Bf8 {[%emt 0:07:43]} (13... Nh5 $5 {[%cal Rd6f4]}) 14. Bg5 {[%emt 0:02:31]} Be7 {[%emt 0:00:45]} 15. h4 {[%emt 0:14:09]} Nh5 {[%emt 0:04:39][%cal Bf6h5,Bh5f4,Bf4d3,Bd3b2,Bb2c4][%mdl 32]} 16. Rac1 {[%emt 0:05:05]} h6 {[%emt 0:13:37]} 17. Bxe7 {[%emt 0:00:08]} Qxe7 {[%emt 0:00:05]} 18. Nxd5 {[%emt 0:09:41]} exd5 {[%emt 0:02:41]} 19. Rxc6 {[%emt 0:00:10] [#] And now Rc8+ would win.} Nf4+ $1 {[%emt 0:03:42]} 20. Kf1 {[%emt 0:25:59] Hoping for Rc8+.} bxc6 {[%emt 0:01:06]} 21. Qb8+ {[%emt 0:00:04]} Qd8 {[%emt 0:00:06]} 22. Qxa7 {[%emt 0:00:04]} (22. Qe5+ $11 Kd7 23. Qxf4) 22... Nxd3 $15 {[%emt 0:00:56]} 23. Qxa6 {[%emt 0:00:19]} ({White must play} 23. Ke2 $1 $15) 23... Nxb2 $17 {[%emt 0:00:51]} 24. Qxc6+ {[%emt 0:00:04]} Kf8 {[%emt 0:00:08]} 25. h5 {[%emt 0:00:16]} g5 {[%emt 0:02:18]} ({Much less strong is} 25... gxh5 26. Qc5+ Ke8 27. Qb5+ Ke7 28. Qxb2 $16) 26. Kg2 {[%emt 0:02:43]} Nc4 {[%emt 0:00:42] Weighted Error Value: White=0.17 (very precise) /Black=0.03 (flawless)} 1/2-1/2

[Event "Stare Mesto Open-A 2022"]
[Site "Stare Mesto"]
[Date "2022.08.20"]
[Round "9.4"]
[White "Murko, David"]
[Black "Kostka, Vit"]
[Result "1/2-1/2"]
[ECO "B40"]
[WhiteElo "2213"]
[BlackElo "2168"]
[Annotator "TA"]
[PlyCount "50"]
[EventDate "2022.08.12"]
[EventType "swiss"]
[EventCountry "CZE"]
[SourceTitle "playchess.com"]
[Source "ChessBase"]
[SourceQuality "1"]
[TimeControl "40/5400+30:1800+30"]

{[%evp 22,50,13,6,13,12,24,0,2,12,21,32,25,21,75,28,43,0,0,0,1,7,51,-51,0,0,0,-45,0,0,0]} 1. e4 {[%emt 0:00:03]} c5 {[%emt 0:00:28]} 2. Nf3 {[%emt 0:00:05]} e6 {[%emt 0:00:37]} 3. d4 {[%emt 0:00:14]} cxd4 {[%emt 0:00:08]} 4. Nxd4 {[%emt 0:00:03]} Nf6 {[%emt 0:00:47]} 5. Nc3 {[%emt 0:00:05]} Nc6 {[%emt 0:00:34]} 6. Nxc6 {[%emt 0:00:18]} bxc6 {[%emt 0:00:15]} 7. e5 {[%emt 0:00:06]} Nd5 {[%emt 0:00:19]} 8. Ne4 {[%emt 0:00:07]} Qc7 {[%emt 0:01:20]} 9. f4 {[%emt 0:00:11]} Qb6 {[%emt 0:00:14]} 10. c4 {[%emt 0:00:39]} Bb4+ {[%emt 0:00:14]} 11. Ke2 {[%emt 0:00:14]} f5 {[%emt 0:00:45]} 12. exf6 {[%emt 0:01:45]} Nxf6 {[%emt 0:00:40] B45: Sicilian Four Knights.} 13. Be3 {[%emt 0:00:19] The board is on fire.} Qd8 {[%emt 0:00:09]} 14. Nd6+ {[%emt 0:01:22]} Bxd6 {[%emt 0:00:40]} 15. Qxd6 {[%emt 0:00:07]} Bb7 {[%emt 0:00:58][%cal Oc6c5]} 16. Rg1 {[%emt 0:10:33]} Ne4 {[%emt 0:24:15]} 17. Qe5 {[%emt 0:02:31][%csl LRe4,LRg7] [#]} Qf6 $146 {[%emt 0:02:40]} ({Predecessor:} 17... c5 18. Qxg7 Qh4 19. g3 Qxh2+ 20. Rg2 Qh1 21. Rg1 Qh5+ 22. g4 Qh2+ 23. Bg2 O-O-O {0-1 (34) Xu,Y (2533)-Li,S (2498) China 2018}) 18. Re1 {[%emt 0:10:59]} (18. g4 $16) 18... d5 {[%emt 0:08:03]} 19. Kd1 {[%emt 0:10:55]} Qxe5 {[%emt 0:16:07]} 20. fxe5 {[%emt 0:00:04]} O-O {[%emt 0:00:20]} 21. Kc2 {[%emt 0:01:08]} Rad8 {[%emt 0:06:09]} 22. Rd1 {[%emt 0:10:45]} (22. Bxa7 $14 c5 {[#]} 23. Rxe4 $1 dxe4 24. Bxc5) 22... Nf2 {[%emt 0:04:35]} (22... c5 $5 {[%cal Rd5d4]} 23. cxd5 exd5 $15) 23. Rd2 {[%emt 0:00:24]} Ne4 {[%emt 0:01:21]} 24. Rd1 {[%emt 0:00:06]} Nf2 {[%emt 0:00:31]} (24... c5 $5 {[%cal Rd5d4]} 25. cxd5 exd5 $15) 25. Rd2 {[%emt 0:00:08]} Ne4 {[%emt 0:08:13] Weighted Error Value: White=0.22 (precise) /Black=0.19 (very precise)} 1/2-1/2

[Event "Stare Mesto Open-A 2022"]
[Site "Stare Mesto"]
[Date "2022.08.20"]
[Round "9.5"]
[White "Cerveny, Martin"]
[Black "Kovarik, David"]
[Result "1-0"]
[ECO "D35"]
[WhiteElo "2396"]
[BlackElo "1741"]
[Annotator "TA"]
[PlyCount "51"]
[EventDate "2022.08.12"]
[EventType "swiss"]
[EventCountry "CZE"]
[SourceTitle "playchess.com"]
[Source "ChessBase"]
[SourceQuality "1"]
[TimeControl "40/5400+30:1800+30"]

{[%evp 17,51,33,39,17,27,19,44,0,0,-64,-49,-78,-84,-93,168,49,27,-56,91,-99,0,-183,-98,-100,0,-118,73,59,67,55,81,54,404,388,641,622]} 1. d4 {[%emt 0:00:06]} d5 {[%emt 0:00:05]} 2. c4 {[%emt 0:00:05]} e6 {[%emt 0:00:06]} 3. Nc3 {[%emt 0:00:07]} Nf6 {[%emt 0:00:06]} 4. cxd5 {[%emt 0:00:27]} exd5 {[%emt 0:00:09]} 5. Bg5 {[%emt 0:00:05]} Be7 {[%emt 0:00:07]} 6. e3 {[%emt 0:00:06]} c6 {[%emt 0:00:08]} 7. Bd3 {[%emt 0:00:10]} Nbd7 {[%emt 0:00:08]} 8. Qc2 {[%emt 0:00:14]} h6 {[%emt 0:00:12] Recently 8...Nh5 got a lot of attention.} 9. Bh4 {[%emt 0:00:07]} Nh5 {[%emt 0:00:23]} 10. Bxe7 {[%emt 0:00:11] D36: Queen's Gambit Declined: Exchange Variation: Main line (5 Bg5 c6 6 Qc2).} Qxe7 {[%emt 0:00:06]} 11. Nge2 {[%emt 0:00:22]} Qg5 {[%emt 0:14:51] [#]} 12. O-O-O $146 {[%emt 0:07:00] White is slightly better.} ({Predecessor:} 12. Ng3 Nxg3 13. hxg3 O-O 14. Ne2 Qd8 15. Rh4 Qa5+ 16. Kf1 Nf6 17. a3 Qd8 18. b4 {0-1 (39) Favitta,A (1950)-Santagati,A (2262) Nicolosi 2015}) 12... Qxg2 {[%emt 0:04:53]} 13. f4 {[%emt 0:14:57]} ({White should try} 13. Ng3 $11 Nxg3 14. hxg3) 13... Ndf6 $15 {[%emt 0:07:49]} 14. Qd2 {[%emt 0:03:13]} Bg4 {[%emt 0:13:04]} 15. Rdg1 {[%emt 0:14:43]} Qf3 {[%emt 0:18:29][%mdl 8192]} (15... Qh3 $17 {stays on course. ...Bf3 is the strong threat.} 16. Rf1 Qh4) 16. h3 {[%emt 0:01:47]} (16. Ng3 $1 $18) 16... Bxh3 $14 {[%emt 0:04:57]} 17. Kb1 {[%emt 0:06:42]} (17. Nd1 $11) 17... Bg4 {[%emt 0:09:24]} (17... g6 $15 {keeps the upper hand.}) 18. Rh2 $2 {[%emt 0:00:35] [#]} (18. Rf1 $16 Qg2 19. Rfg1) 18... O-O {[%emt 0:08:27]} ({Black should play} 18... O-O-O $1 $17 19. Ka1 g6) 19. Nc1 $2 {[%emt 0:03:38] [#]} (19. Nd1 $11) 19... Rfe8 {[%emt 0:04:39]} (19... Ng3 $1 $19 {Strongly threatening ...Rae8.} 20. Qg2 Qxg2 21. Rhxg2 Nf5 22. Rxg4 Nxg4 23. Bxf5 Nxe3) 20. Be2 $17 {[%emt 0:02:44]} Ne4 {[%emt 0:08:18]} (20... Qxe3 $17 21. Qxe3 Rxe3 22. Bxg4 Nxf4) 21. Qc2 {[%emt 0:01:38]} (21. Qd3 $11 {remains equal.} Nxc3+ 22. bxc3 Nxf4 23. Bxf3 Nxd3 24. Bxg4 Nxc1 25. Kxc1) 21... Nxc3+ $2 {[%emt 0:01:26]} (21... Qxe3 $17 {keeps the pressure on.} 22. Rxg4 f5 23. Nxe4 Rxe4) 22. bxc3 $16 {[%emt 0:00:11]} Qxe3 {[%emt 0:00:51]} 23. Rxg4 {[%emt 0:00:09]} Nxf4 {[%emt 0:01:42]} 24. Bd1 {[%emt 0:04:32]} ({And not} 24. Rxh6 Nxe2 25. Qh7+ Kf8 26. Qxg7+ Ke7 27. Nxe2 (27. Qf6+ Kd7 $17) 27... Qxe2 $17) 24... Re6 $2 {[%emt 0:00:07][%mdl 8192]} ({Better is} 24... Ne6 $14) 25. Rf2 $18 {[%emt 0:03:14]} Ng6 {[%emt 0:00:57]} (25... Rf6 26. Rf3 Qe4 27. Qxe4 dxe4 28. Rfxf4 Rxf4) 26. Re2 {[%emt 0:00:09] Weighted Error Value: White=0.71/Black=1.19} 1-0

[Event "Stare Mesto Open-A 2022"]
[Site "Stare Mesto"]
[Date "2022.08.20"]
[Round "9.6"]
[White "Travnicek, Krystof Mikulas"]
[Black "Zpevak, Pavel"]
[Result "1/2-1/2"]
[ECO "B23"]
[WhiteElo "2138"]
[BlackElo "2351"]
[Annotator "TA"]
[PlyCount "32"]
[EventDate "2022.08.12"]
[EventType "swiss"]
[EventCountry "CZE"]
[SourceTitle "playchess.com"]
[Source "ChessBase"]
[SourceQuality "1"]
[TimeControl "40/5400+30:1800+30"]

{[%evp 15,18,-14,41,24,39]} 1. e4 {[%emt 0:00:07]} c5 {[%emt 0:00:15]} 2. Nc3 {[%emt 0:00:26]} e6 {[%emt 0:00:20]} 3. f4 {[%emt 0:00:27]} a6 {[%emt 0:01:02]} 4. Nf3 {[%emt 0:00:39]} d5 {[%emt 0:00:08]} 5. d3 {[%emt 0:00:23]} Nc6 {[%emt 0:00:43]} 6. g3 {[%emt 0:00:27]} Nf6 {[%emt 0:00:48]} 7. Bg2 {[%emt 0:00:24]} Be7 {[%emt 0:04:15]} 8. O-O {[%emt 0:00:36]} O-O {[%emt 0:07:34]} (8... d4 $11 9. Nb1 O-O) 9. Ne5 $14 {[%emt 0:00:44] B23: Closed Sicilian: Lines without g3.} Nd4 {[%emt 0:04:02] [#]} {Predecessor:} 10. g4 $146 dxe4 11. dxe4 b5 12. g5 Nd7 13. Nf3 Bb7 14. Kh1 b4 15. Nxd4 cxd4 16. Ne2 Nc5 {0-1 (31) Aronian,L (2752)-Ivanchuk,V (2729) Monte Carlo 2006} 1/2-1/2

[Event "Stare Mesto Open-A 2022"]
[Site "Stare Mesto"]
[Date "2022.08.20"]
[Round "9.7"]
[White "Husek, Martin"]
[Black "Lojek, Marek"]
[Result "1/2-1/2"]
[ECO "C65"]
[WhiteElo "2132"]
[BlackElo "2142"]
[Annotator "TA"]
[PlyCount "71"]
[EventDate "2022.08.12"]
[EventType "swiss"]
[EventCountry "CZE"]
[SourceTitle "playchess.com"]
[Source "ChessBase"]
[SourceQuality "1"]
[TimeControl "40/5400+30:1800+30"]

{[%evp 9,71,8,48,17,23,0,0,3,0,1,9,0,8,0,0,0,0,7,0,0,21,12,11,11,19,14,12,26,15,22,152,150,168,171,183,114,229,235,231,223,233,209,251,224,300,219,288,-8,15,0,44,0,0,0,39,30,56,0,0,0,31,0,0,0]} 1. e4 {[%emt 0:33:18]} e5 {[%emt 0:00:08]} 2. Nf3 {[%emt 0:00:15]} Nc6 {[%emt 0:00:08]} 3. Bb5 {[%emt 0:00:09]} Nf6 {[%emt 0:00:15]} 4. d3 {[%emt 0:00:10]} Bc5 {[%emt 0:00:09]} 5. Nbd2 {[%emt 0:00:22]} d5 {[%emt 0:08:31] [#]} (5... Nd4 $5 {[%cal Rd4b5]} 6. Bc4 (6. Nxd4 Bxd4 7. O-O O-O $11) 6... Nxf3+ 7. Nxf3 O-O $11) 6. Nxe5 $146 {[%emt 0:05:44] C65: Ruy Lopez: Berlin Defence (3...Nf6), unusual lines and 4 0-0 Bc5.} ({Predecessor:} 6. c3 Bd7 7. Bxc6 Bxc6 8. Nxe5 dxe4 9. Nxc6 bxc6 10. dxe4 Qd3 11. Qa4 Bxf2+ 12. Kxf2 Ng4+ {1-0 (24) Pavlov Erbis,A (792)-Mesina,D (1167) Playchess.com INT 2020}) 6... O-O $1 {[%emt 0:04:18]} 7. Nef3 {[%emt 0:13:34]} dxe4 {[%emt 0:07:16]} 8. dxe4 {[%emt 0:00:44]} Bg4 {[%emt 0:07:43]} 9. O-O {[%emt 0:03:41]} Re8 {[%emt 0:05:58]} 10. h3 {[%emt 0:02:02]} Bxf3 {[%emt 0:04:24]} 11. Qxf3 {[%emt 0:00:27]} Nd4 {[%emt 0:03:20][%csl LRb5,LRc2,LRf3]} 12. Qd3 {[%emt 0:00:20]} c6 {[%emt 0:02:21]} 13. Ba4 b5 {[%emt 0:04:02]} 14. Bb3 {[%emt 0:04:09]} Qe7 {[%emt 0:09:40]} 15. Re1 {[%emt 0:03:01]} Rad8 {[%emt 0:01:33]} 16. e5 {[%emt 0:04:23]} a5 {[%emt 0:07:16]} 17. a4 {[%emt 0:02:05]} Qa7 {[%emt 0:00:46]} 18. Qf1 $1 {[%emt 0:01:56]} Nh5 {[%emt 0:02:32][%cal Oh5g3]} 19. Ne4 {[%emt 0:04:31] Inhibits Ng3.} Rxe5 {[%emt 0:04:28]} (19... Nxb3 $11 {keeps the balance.} 20. cxb3 Bb4) 20. Nxc5 $16 {[%emt 0:01:20]} Qxc5 {[%emt 0:08:18] [#]} 21. Be3 $1 {[%emt 0:02:07]} Qb4 {[%emt 0:03:40]} 22. Bxd4 {[%emt 0:01:58]} ({Better is} 22. Red1 $18) 22... Rxe1 {[%emt 0:00:41]} (22... Qxd4 $16 {was worth a try.} 23. c3 (23. Rxe5 Qxe5 24. axb5 cxb5 $16) 23... Rxe1 24. Qxe1 (24. cxd4 Rxf1+ 25. Kxf1 bxa4 $14) (24. Rxe1 Qc5 $14) 24... Qa7) 23. Qxe1 $18 {[%emt 0:01:31]} Qxd4 {[%emt 0:00:15]} 24. axb5 {[%emt 0:00:32]} cxb5 {[%emt 0:02:01]} 25. Rxa5 {[%emt 0:03:17]} Nf6 {[%emt 0:01:48]} 26. Qe7 {[%emt 0:04:23]} Ne4 {[%emt 0:00:50]} 27. Qxf7+ {[%emt 0:01:37]} Kh8 {[%emt 0:00:04]} 28. Rxb5 $2 {[%emt 0:01:10]} ({White should play} 28. c3 $18 Qe5 {[#]} 29. Qd5 $3 {[%mdl 512]} Qxd5 30. Bxd5) 28... Qd1+ {[%emt 0:00:46]} 29. Kh2 {[%emt 0:00:13]} Qd6+ {[%emt 0:00:04]} 30. Kg1 {[%emt 0:02:06] Hoping for Rd5.} Qd1+ {[%emt 0:00:05]} 31. Kh2 {[%emt 0:00:05] Black must now prevent Rd5.} Qd6+ {[%emt 0:00:04]} 32. f4 {[%emt 0:02:30]} Rf8 {[%emt 0:01:13] [#]} 33. Rd5 $1 {[%emt 0:00:22]} Qb8 {[%emt 0:06:17]} 34. Rb5 $1 {[%emt 0:00:21] White threatens Rb7 and mate.} Qd6 {[%emt 0:00:07]} 35. Rd5 {[%emt 0:01:32]} Qb8 {[%emt 0:00:04]} 36. Rb5 $1 {[%emt 0:00:50] Black defended with fortune.  Weighted Error Value: White=0.30/Black=0.22 (precise)} 1/2-1/2

[Event "Stare Mesto Open-A 2022"]
[Site "Stare Mesto"]
[Date "2022.08.20"]
[Round "9.8"]
[White "Prazak, Daniel"]
[Black "Skalka, Jan"]
[Result "1-0"]
[ECO "B39"]
[WhiteElo "2113"]
[BlackElo "1909"]
[Annotator "TA"]
[PlyCount "45"]
[EventDate "2022.08.12"]
[EventType "swiss"]
[EventCountry "CZE"]
[SourceTitle "playchess.com"]
[Source "ChessBase"]
[SourceQuality "1"]
[TimeControl "40/5400+30:1800+30"]

{[%evp 22,45,47,49,65,63,55,28,27,13,85,85,119,132,140,141,129,126,131,129,140,142,250,235,5493,5397]} 1. e4 {[%emt 0:05:22]} c5 {[%emt 0:00:04]} 2. Nf3 {[%emt 0:00:51]} Nc6 {[%emt 0:00:09]} 3. d4 {[%emt 0:00:14]} cxd4 {[%emt 0:00:07]} 4. Nxd4 {[%emt 0:00:06]} g6 {[%emt 0:00:07]} 5. c4 {[%emt 0:00:14]} Bg7 {[%emt 0:00:08]} 6. Be3 {[%emt 0:00:08]} Nf6 {[%emt 0:00:10]} 7. Nc3 {[%emt 0:00:09]} Ng4 {[%emt 0:00:09]} 8. Qxg4 {[%emt 0:00:36]} Nxd4 {[%emt 0:00:09]} 9. Qd1 {[%emt 0:00:19]} e5 {[%emt 0:00:19]} 10. Bd3 {[%emt 0:05:58]} O-O {[%emt 0:01:05]} 11. O-O {[%emt 0:01:10]} d6 {[%emt 0:00:58]} 12. Qd2 {[%emt 0:10:43]} a6 {[%emt 0:03:02] B39: Sicilian: Maroczy Bind with 5...Bg7 and 7...Ng4.} 13. Nd5 {[%emt 0:06:50]} Be6 {[%emt 0:01:55]} 14. f4 {[%emt 0:15:17] [#]} exf4 $146 {[%emt 0:09:46] White has an edge.} ({Predecessor:} 14... f5 15. fxe5 dxe5 16. Bg5 Qd7 17. Nb6 Qc6 18. Nxa8 Rxa8 19. Rfe1 Qc5 {1-0 (33) Trouve,G (1677)-Beneteau Desmoulieres,M (1470) France 2011}) 15. Rxf4 {[%emt 0:06:54]} Be5 {[%emt 0:10:19]} (15... Nc6 $11) 16. Raf1 $16 {[%emt 0:12:43][%cal Ob2b3]} Bxd5 {[%emt 0:03:56]} 17. exd5 {[%emt 0:01:02]} Bxf4 {[%emt 0:03:00]} 18. Rxf4 {[%emt 0:00:36]} Nf5 {[%emt 0:00:28]} 19. Bxf5 {[%emt 0:08:01]} gxf5 {[%emt 0:00:38]} 20. Bd4 {[%emt 0:03:37]} f6 {[%emt 0:05:31]} 21. Qd3 {[%emt 0:01:57] 0x0.001682bec6f6dp-1022s more active pieces.} ({Resist} 21. Rxf5 Qe7 $16) 21... Qe7 {[%emt 0:02:20]} (21... Rc8 $16 {might work better.}) 22. Qxf5 $18 {[%emt 0:02:02] aiming for Qg4+.} Kg7 $2 {[%emt 0:01:38] [#]} (22... Rae8) 23. Qg5+ {[%emt 0:00:40][%mdl 64] Deflection.  Weighted Error Value: White=0.03 (flawless) /Black=0.34} 1-0